bitfinex/quotes_SOLUSD_20220104
["timestamp","ask_amount","ask_price","bid_price","bid_amount"]
[1641268367212,27.87271287,168.1,168.0,1.68669368]
[1641268367412,27.87271287,168.1,168.0,2.18669368]
[1641268367816,27.87271287,168.1,168.01,1.42669368]
[1641268368014,27.87271287,168.1,168.01,1.68669368]
[1641268368216,27.87271287,168.1,168.01,3.52949368]
[1641268370222,27.87271287,168.1,168.02,1.42669368]
[1641268370424,27.87271287,168.1,168.02,1.92669368]
[1641268370622,27.87271287,168.1,168.02,2.18669368]
[1641268370821,27.87271287,168.1,168.03,1.42669368]
[1641268371123,27.87271287,168.1,168.03,1.68669368]
[1641268371320,27.87271287,168.1,168.03,2.18669368]
[1641268371521,26.57151287,168.1,168.03,2.18669368]
[1641268373927,26.57151287,168.1,168.03,0.5]
[1641268374325,26.57151287,168.1,168.01,1.8428]
[1641268374528,26.57151287,168.1,168.01,1.3428]
[1641268374726,1.2544,168.09,168.01,1.8428]
[1641268374926,1.2544,168.09,168.01,3.26949368]
[1641268375329,1.2544,168.09,168.01,3.52949368]
[1641268375930,1.2544,168.09,168.01,2.1028]
[1641268379935,1.2544,168.09,168.01,0.26]
[1641268380136,1.2544,168.09,167.98,24.6285]
[1641268380336,1.2544,168.09,167.98,25.1285]
[1641268380840,1.7544,168.09,167.98,0.5]
[1641268381336,1.2544,168.09,167.97,1.7634]
[1641268381537,1.2544,168.09,167.97,25.4514]
[1641268381737,1.7544,168.09,167.97,25.9514]
[1641268382336,1.2544,168.09,167.97,25.9514]
[1641268383438,1.2544,168.09,167.97,27.37809368]
[1641268385241,8.56,168.08,167.97,27.37809368]
[1641268385441,23.9293,168.07,167.97,27.37809368]
[1641268386343,1.3474,168.06,167.97,27.37809368]
[1641268386943,1.3474,168.06,167.97,27.11809368]
[1641268388374,1.3474,168.06,167.97,27.37809368]
[1641268388977,1.3474,168.06,167.97,3.45009368]
[1641268389176,9.9074,168.06,167.97,3.19009368]
[1641268389379,27.09073809,168.04,167.97,0.5]
[1641268389778,24.4373,168.03,167.93,1.92669368]
[1641268390078,24.4373,168.03,167.93,1.42669368]
[1641268390278,24.4373,168.03,167.93,1.92669368]
[1641268390477,1.3019,168.02,167.93,2.18669368]
[1641268391178,1.3019,168.02,167.94,1.3541]
[1641268391379,1.3019,168.02,167.94,1.8541]
[1641268391579,1.3019,168.02,167.94,2.1141]
[1641268392080,1.3019,168.02,167.95,1.42669368]
[1641268392482,1.3019,168.02,167.95,2.18669368]
[1641268394080,1.3019,168.02,167.95,0.76]
[1641268394280,1.3019,168.02,167.96,1.42669368]
[1641268394480,1.3019,168.02,167.96,0.5]
[1641268395082,1.3019,168.02,167.94,3.28079368]
[1641268395283,1.3019,168.02,167.96,1.42669368]
[1641268395482,1.3019,168.02,167.96,1.92669368]
[1641268396283,27.09073809,168.04,167.96,2.18669368]
[1641268396685,27.59073809,168.04,167.96,2.18669368]
[1641268397987,22.8166,168.03,167.96,2.18669368]
[1641268401894,2.45524364,168.04,167.96,2.18669368]
[1641268402894,28.13894263,168.04,167.96,2.18669368]
[1641268403094,24.3147,168.03,167.96,2.18669368]
[1641268403600,25.68369899,168.04,167.96,2.18669368]
[1641268403797,8.56,168.08,167.96,2.18669368]
[1641268403996,27.48897067,168.09,167.96,2.18669368]
[1641268404197,27.48897067,168.09,167.97,1.334]
[1641268404396,24.5724,168.09,167.97,1.834]
[1641268404597,2.56560675,168.08,167.98,1.42669368]
[1641268404798,30.92370836,168.08,167.98,1.42669368]
[1641268404999,30.92370836,168.08,167.98,2.18669368]
[1641268405403,24.1839,168.07,167.99,1.42669368]
[1641268405798,24.1839,168.07,167.99,1.92669368]
[1641268406826,24.1839,168.07,167.99,2.18669368]
[1641268409334,24.1839,168.07,168.0,1.42669368]
[1641268409531,24.1839,168.07,168.0,1.68669368]
[1641268409733,24.1839,168.07,168.0,2.18669368]
[1641268410137,24.1839,168.07,168.01,1.42669368]
[1641268410333,24.1839,168.07,168.01,1.92669368]
[1641268410534,24.1839,168.07,168.01,2.18669368]
[1641268410937,24.1839,168.07,168.01,0.76]
[1641268411236,24.1839,168.07,168.01,0.26]
[1641268411434,24.1839,168.07,168.01,1.42669368]
[1641268411832,24.1839,168.07,168.01,1.68669368]
[1641268412234,2.6627899,168.06,168.01,1.68669368]
[1641268412435,2.6627899,168.06,168.01,2.18669368]
[1641268413634,24.1839,168.07,168.01,2.18669368]
[1641268413837,1.3438,168.09,168.01,2.18669368]
[1641268414634,2.89100474,168.09,168.01,2.18669368]
[1641268429190,2.89100474,168.09,168.01,1.42669368]
[1641268429385,3.39100474,168.09,168.01,1.42669368]
[1641268430387,2.89100474,168.09,168.01,1.92669368]
[1641268430588,2.89100474,168.09,168.01,2.18669368]
[1641268431588,2.89100474,168.09,168.01,12.27919464]
[1641268447603,9.8959,168.1,168.01,12.27919464]
[1641268448605,9.8959,168.1,168.02,1.3103]
[1641268448805,12.04603232,168.1,168.02,1.3103]
[1641268449007,12.04603232,168.1,168.03,1.42669368]
[1641268449406,12.04603232,168.1,168.03,2.18669368]
[1641268449806,12.04603232,168.1,168.04,1.42669368]
[1641268450009,12.04603232,168.1,168.04,1.68669368]
[1641268450206,12.04603232,168.1,168.04,2.18669368]
[1641268450409,12.04603232,168.1,168.05,1.42669368]
[1641268450609,12.04603232,168.1,168.05,1.68669368]
[1641268450808,12.04603232,168.1,168.05,2.18669368]
[1641268451634,12.04603232,168.1,168.06,1.42669368]
[1641268452035,12.04603232,168.1,168.06,1.68669368]
[1641268452437,12.04603232,168.1,168.06,2.18669368]
[1641268453338,12.04603232,168.1,168.06,1.68669368]
[1641268453542,12.04603232,168.1,168.06,2.18669368]
[1641268456039,12.04603232,168.1,168.06,1.68669368]
[1641268460347,12.04603232,168.1,168.06,2.18669368]
[1641268460743,12.04603232,168.1,168.06,1.68669368]
[1641268461144,12.04603232,168.1,168.06,2.18669368]
[1641268461344,12.04603232,168.1,168.06,1.68669368]
[1641268465651,12.04603232,168.1,168.06,1.42669368]
[1641268466452,12.04603232,168.1,168.03,1.42669368]
[1641268466852,12.04603232,168.1,168.03,1.92669368]
[1641268467054,12.04603232,168.1,168.03,2.18669368]
[1641268467253,12.04603232,168.1,168.04,1.42669368]
[1641268467452,12.04603232,168.1,168.04,2.18669368]
[1641268467851,12.04603232,168.1,168.05,1.42669368]
[1641268468055,12.04603232,168.1,168.05,1.68669368]
[1641268468254,12.04603232,168.1,168.05,2.18669368]
[1641268468654,12.04603232,168.1,168.06,1.42669368]
[1641268469054,12.04603232,168.1,168.06,1.68669368]
[1641268469455,12.04603232,168.1,168.06,1.42669368]
[1641268470859,12.04603232,168.1,168.06,2.18669368]
[1641268471862,12.04603232,168.1,168.06,1.42669368]
[1641268472062,12.04603232,168.1,168.03,1.42669368]
[1641268472461,12.04603232,168.1,168.0,77.61419368]
[1641268473267,12.04603232,168.1,168.0,78.11419368]
[1641268473465,12.54603232,168.1,168.0,78.37419368]
[1641268475472,12.04603232,168.1,168.0,78.37419368]
[1641268479987,9.8959,168.1,168.0,78.37419368]
[1641268480589,9.8959,168.1,168.0,1.92669368]
[1641268480787,10.3959,168.1,168.0,1.92669368]
[1641268480991,2.29634277,168.09,168.0,1.92669368]
[1641268481190,8.56,168.08,168.0,1.92669368]
[1641268481888,8.56,168.08,168.0,2.18669368]
[1641268483093,10.1353,168.08,168.0,2.18669368]
[1641268483494,9.8753,168.08,168.0,2.18669368]
[1641268483691,10.1353,168.08,168.0,2.18669368]
[1641268484791,10.3753,168.08,168.0,2.18669368]
[1641268485592,9.8753,168.08,168.0,2.18669368]
[1641268488193,10.1353,168.08,168.0,2.18669368]
[1641268488394,9.8753,168.08,168.0,2.18669368]
[1641268493502,9.8753,168.08,168.0,1.92669368]
[1641268493702,24.4278,168.07,168.0,1.92669368]
[1641268494403,8.56,168.1,168.0,22.49726902]
[1641268494605,8.56,168.1,168.0,28.94026902]
[1641268495007,8.56,168.1,168.0,29.20026902]
[1641268495205,8.56,168.1,168.01,24.5591]
[1641268495406,3.05499328,168.09,168.01,25.0591]
[1641268495606,3.05499328,168.09,168.02,1.42669368]
[1641268496005,3.05499328,168.09,168.02,2.18669368]
[1641268496206,3.05499328,168.09,168.02,0.5]
[1641268496604,3.05499328,168.09,168.01,0.5]
[1641268496805,4.85889328,168.09,167.99,3.22719368]
[1641268497005,4.85889328,168.09,167.99,2.72719368]
[1641268497204,4.35889328,168.09,167.99,3.22719368]
[1641268498006,4.35889328,168.09,168.0,24.7529]
[1641268498506,12.91889328,168.09,168.0,25.5129]
[1641268499406,12.91889328,168.09,168.01,1.3779]
[1641268499606,12.91889328,168.09,168.01,1.6379]
[1641268499807,24.902,168.08,168.01,1.8779]
[1641268500208,24.902,168.08,167.99,1.42669368]
[1641268500408,25.162,168.08,168.0,0.5]
[1641268500809,24.902,168.08,168.0,0.5]
[1641268501009,24.902,168.08,167.99,26.59539368]
[1641268501614,24.902,168.08,167.99,26.85539368]
[1641268508216,24.902,168.08,167.99,26.59539368]
[1641268508419,24.902,168.08,167.99,25.1687]
[1641268508618,24.902,168.08,167.99,24.6687]
[1641268509121,8.56,168.07,167.99,24.6687]
[1641268510022,8.56,168.07,167.99,25.4287]
[1641268510218,9.8432,168.07,167.99,25.4287]
[1641268515124,9.8432,168.07,167.99,0.5]
[1641268515325,10.1032,168.07,167.99,0.5]
[1641268515526,10.1032,168.07,167.98,1.3605]
[1641268515826,24.4506,168.06,167.98,1.8605]
[1641268516225,29.85105673,168.05,167.98,1.8605]
[1641268516425,29.85105673,168.05,167.98,2.1205]
[1641268516625,2.69134991,168.03,167.93,1.42669368]
[1641268516836,1.75108954,167.93,167.85,0.50673652]
[1641268517027,2.78809422,167.91,167.85,0.50673652]
[1641268517227,8.56,167.9,167.85,0.50673652]
[1641268521651,8.56,167.9,167.83,2.5523853]
[1641268523051,8.56,167.9,167.83,2.8123853]
[1641268523251,8.56,167.9,167.83,16.7035134]
[1641268525152,8.56,167.9,167.83,2.8123853]
[1641268526156,35.46541851,167.9,167.83,2.5523853]
[1641268527655,35.46541851,167.9,167.83,2.8123853]
[1641268528253,35.46541851,167.9,167.83,2.5523853]
[1641268529554,35.46541851,167.9,167.83,2.8123853]
[1641268531456,35.46541851,167.9,167.83,0.76]
[1641268531657,35.46541851,167.9,167.81,74.5728]
[1641268531958,8.56,167.9,167.81,74.5728]
[1641268532360,22.7012,167.92,167.81,74.5728]
[1641268540066,22.7012,167.92,167.81,74.3128]
[1641268541469,22.7012,167.92,167.81,74.5728]
[1641268543969,31.2612,167.92,167.81,74.5728]
[1641268546270,31.2612,167.92,167.81,74.3128]
[1641268547574,31.2612,167.92,167.81,74.5728]
[1641268550675,8.56,167.92,167.81,74.5728]
[1641268551880,1.75108954,167.93,167.81,74.5728]
[1641268552080,1.75108954,167.93,167.82,8.56]
[1641268552278,1.75108954,167.93,167.82,22.35148193]
[1641268552478,1.75108954,167.93,167.83,1.42669368]
[1641268552681,1.75108954,167.93,167.84,8.56]
[1641268552903,1.75108954,167.93,167.85,16.23602589]
[1641268553103,1.75108954,167.93,167.85,17.92271957]
[1641268553304,1.75108954,167.93,167.86,1.42669368]
[1641268553503,1.75108954,167.93,167.86,1.68669368]
[1641268553703,1.75108954,167.93,167.86,2.18669368]
[1641268553904,1.75108954,167.93,167.87,1.42669368]
[1641268554105,1.75108954,167.93,167.87,1.68669368]
[1641268554304,1.75108954,167.93,167.87,2.18669368]
[1641268555307,1.75108954,167.93,167.87,0.76]
[1641268555507,1.75108954,167.93,167.87,0.5]
[1641268555712,1.75108954,167.93,167.85,2.077]
[1641268556206,1.75108954,167.93,167.85,3.50369368]
[1641268556511,1.75108954,167.93,167.85,34.23424792]
[1641268557006,1.75108954,167.93,167.85,3.50369368]
[1641268557209,1.75108954,167.93,167.85,2.077]
[1641268558407,1.75108954,167.93,167.85,1.817]
[1641268558611,1.75108954,167.93,167.85,1.317]
[1641268558810,9.89970139,167.93,167.85,1.317]
[1641268559207,18.45970139,167.93,167.85,1.317]
[1641268559406,27.02140015,167.92,167.85,1.317]
[1641268560008,27.02140015,167.92,167.85,1.577]
[1641268560209,27.02140015,167.92,167.85,2.077]
[1641268562411,1.75108954,167.93,167.86,1.42669368]
[1641268562614,1.75108954,167.93,167.86,6.46569368]
[1641268562811,1.75108954,167.93,167.86,7.22569368]
[1641268563015,1.75108954,167.93,167.87,1.42669368]
[1641268563413,1.75108954,167.93,167.87,2.18669368]
[1641268563815,1.75108954,167.93,167.88,1.42669368]
[1641268564014,1.75108954,167.93,167.88,1.68669368]
[1641268564214,1.75108954,167.93,167.88,2.18669368]
[1641268565318,1.75108954,167.93,167.89,1.42669368]
[1641268565521,1.75108954,167.93,167.89,1.68669368]
[1641268565719,1.75108954,167.93,167.89,2.18669368]
[1641268566119,1.75108954,167.93,167.9,1.42669368]
[1641268566519,1.75108954,167.93,167.9,2.18669368]
[1641268566919,1.75108954,167.93,167.91,1.42669368]
[1641268567120,1.75108954,167.93,167.91,0.26]
[1641268567320,1.75108954,167.93,167.91,0.76]
[1641268567520,1.75108954,167.93,167.91,0.5]
[1641268568026,1.75108954,167.93,167.92,6.06439992]
[1641268568220,1.75108954,167.93,167.87,2.18669368]
[1641268568623,1.75108954,167.93,167.88,1.42669368]
[1641268568820,1.75108954,167.93,167.88,1.92669368]
[1641268569021,1.75108954,167.93,167.88,2.18669368]
[1641268569221,1.75108954,167.93,167.89,1.42669368]
[1641268569422,1.75108954,167.93,167.89,1.92669368]
[1641268569622,1.75108954,167.93,167.89,0.5]
[1641268569824,1.75108954,167.93,167.86,79.67979368]
[1641268570822,1.75108954,167.93,167.86,79.93979368]
[1641268572423,1.75108954,167.93,167.86,2.18669368]
[1641268572625,1.75108954,167.93,167.86,0.26]
[1641268572823,1.75108954,167.93,167.86,0.76]
[1641268573023,1.75108954,167.93,167.86,0.5]
[1641268573423,1.75108954,167.93,167.84,2.0942]
[1641268573824,1.75108954,167.93,167.86,1.42669368]
[1641268574024,1.75108954,167.93,167.86,1.68669368]
[1641268574224,1.75108954,167.93,167.86,1.92669368]
[1641268574424,1.75108954,167.93,167.84,2.76089368]
[1641268574626,1.75108954,167.93,167.84,3.26089368]
[1641268575624,1.75108954,167.93,167.84,3.52089368]
[1641268576125,10.31108954,167.93,167.84,3.52089368]
[1641268577827,29.95034002,167.92,167.84,3.52089368]
[1641268579254,8.56,167.92,167.84,3.52089368]
[1641268580255,33.00179436,167.92,167.84,3.52089368]
[1641268580655,33.00179436,167.92,167.84,3.26089368]
[1641268580958,33.00179436,167.92,167.84,1.92669368]
[1641268581756,56.82349436,167.92,167.84,1.92669368]
[1641268582970,56.82349436,167.92,167.84,2.18669368]
[1641268583561,56.82349436,167.92,167.84,0.76]
[1641268583761,57.58349436,167.92,167.84,0.76]
[1641268583958,56.82349436,167.92,167.8,3.44569368]
[1641268584159,56.82349436,167.92,167.8,3.18569368]
[1641268584360,57.32349436,167.92,167.8,3.18569368]
[1641268584659,57.58349436,167.92,167.8,3.18569368]
[1641268585260,57.08349436,167.92,167.8,3.18569368]
[1641268585459,57.08349436,167.92,167.8,3.44569368]
[1641268588068,57.08349436,167.92,167.8,1.92669368]
[1641268589268,57.08349436,167.92,167.8,2.18669368]
[1641268589469,1.379,167.91,167.8,2.18669368]
[1641268589670,2.3323576,167.89,167.8,2.18669368]
[1641268590472,33.9923576,167.89,167.8,3.43779368]
[1641268590673,33.9923576,167.89,167.8,1.92669368]
[1641268591077,33.9923576,167.89,167.79,93.7]
[1641268591474,33.9923576,167.89,167.79,94.2]
[1641268591673,2.96034279,167.88,167.79,93.7]
[1641268591873,8.56,167.87,167.79,93.7]
[1641268592073,8.82,167.87,167.79,93.7]
[1641268592473,8.82,167.87,167.79,93.96]
[1641268592874,8.82,167.87,167.79,94.46]
[1641268593076,8.82,167.87,167.79,94.2]
[1641268593979,8.56,167.87,167.79,94.2]
[1641268594375,22.6421077,167.89,167.79,95.62669368]
[1641268594576,8.56,167.91,167.79,2.18669368]
[1641268594776,8.56,167.91,167.8,1.261]
[1641268594979,8.56,167.91,167.8,1.521]
[1641268595178,8.56,167.91,167.81,1.42669368]
[1641268595378,8.56,167.91,167.81,1.92669368]
[1641268595578,8.56,167.91,167.81,2.18669368]
[1641268595780,8.56,167.91,167.82,1.42669368]
[1641268595979,8.56,167.91,167.82,1.68669368]
[1641268596183,8.56,167.91,167.82,2.18669368]
[1641268596381,3.05102095,167.9,167.82,2.18669368]
[1641268596979,3.05102095,167.9,167.82,18.97116318]
[1641268597186,48.7085,167.92,167.82,18.97116318]
[1641268597780,48.7085,167.92,167.83,1.42669368]
[1641268597983,47.4471,167.92,167.83,2.18669368]
[1641268598185,1.75108954,167.93,167.83,2.18669368]
[1641268598379,1.75108954,167.93,167.84,1.42669368]
[1641268598583,1.75108954,167.93,167.84,1.68669368]
[1641268598780,1.75108954,167.93,167.84,2.18669368]
[1641268598982,1.75108954,167.93,167.85,1.42669368]
[1641268599380,1.75108954,167.93,167.85,2.18669368]
[1641268599779,1.75108954,167.93,167.86,1.42669368]
[1641268600180,1.75108954,167.93,167.86,1.92669368]
[1641268600582,1.75108954,167.93,167.86,0.5]
[1641268600980,1.75108954,167.93,167.83,1.92669368]
[1641268601183,1.75108954,167.93,167.83,1.42669368]
[1641268601382,1.75108954,167.93,167.86,1.42669368]
[1641268601782,1.75108954,167.93,167.86,1.92669368]
[1641268601982,1.75108954,167.93,167.86,2.18669368]
[1641268603589,10.31108954,167.93,167.86,2.18669368]
[1641268603789,2.80454802,167.92,167.86,0.76]
[1641268603989,8.56,167.91,167.86,0.5]
[1641268604291,8.56,167.91,167.82,18.97116318]
[1641268605089,36.02434802,167.92,167.82,18.97116318]
[1641268606015,36.02434802,167.92,167.83,1.3773]
[1641268606419,33.52434802,167.92,167.84,1.42669368]
[1641268606820,33.52434802,167.92,167.84,1.92669368]
[1641268607219,33.52434802,167.92,167.85,1.42669368]
[1641268607419,31.9324,167.92,167.85,1.92669368]
[1641268607619,1.75108954,167.93,167.85,2.18669368]
[1641268607818,1.75108954,167.93,167.86,1.42669368]
[1641268608018,1.75108954,167.93,167.86,1.68669368]
[1641268608224,1.75108954,167.93,167.86,2.18669368]
[1641268608419,1.75108954,167.93,167.87,1.42669368]
[1641268608919,1.75108954,167.93,167.87,2.18669368]
[1641268609221,1.75108954,167.93,167.88,1.42669368]
[1641268609425,1.75108954,167.93,167.88,1.92669368]
[1641268609622,1.75108954,167.93,167.88,2.18669368]
[1641268610025,1.75108954,167.93,167.88,1.92669368]
[1641268610226,1.75108954,167.93,167.88,0.5]
[1641268610424,1.75108954,167.93,167.85,1.92669368]
[1641268610723,1.75108954,167.93,167.86,1.42669368]
[1641268610923,1.75108954,167.93,167.86,1.92669368]
[1641268611324,1.75108954,167.93,167.87,1.42669368]
[1641268611524,1.75108954,167.93,167.87,1.68669368]
[1641268611730,1.75108954,167.93,167.87,2.18669368]
[1641268612623,1.75108954,167.93,167.87,1.92669368]
[1641268612826,1.75108954,167.93,167.87,0.5]
[1641268613224,1.75108954,167.93,167.84,1.92669368]
[1641268613625,1.75108954,167.93,167.85,1.42669368]
[1641268614031,1.75108954,167.93,167.85,1.92669368]
[1641268614627,33.57670884,167.93,167.85,1.92669368]
[1641268614827,3.00350822,167.92,167.85,1.92669368]
[1641268615027,3.00350822,167.92,167.85,2.18669368]
[1641268615434,3.00350822,167.92,167.86,1.42669368]
[1641268615929,3.00350822,167.92,167.86,1.92669368]
[1641268616932,3.00350822,167.92,167.87,1.42669368]
[1641268617430,3.00350822,167.92,167.87,2.18669368]
[1641268618331,1.75108954,167.93,167.87,0.76]
[1641268618630,1.75108954,167.93,167.88,1.42669368]
[1641268618829,1.75108954,167.93,167.88,1.92669368]
[1641268619031,1.75108954,167.93,167.88,2.18669368]
[1641268619229,1.75108954,167.93,167.89,1.42669368]
[1641268619430,1.75108954,167.93,167.89,29.81922462]
[1641268619632,1.75108954,167.93,167.89,30.07922462]
[1641268619830,1.75108954,167.93,167.9,1.42669368]
[1641268620030,1.75108954,167.93,167.9,1.68669368]
[1641268620329,1.75108954,167.93,167.9,2.18669368]
[1641268621333,1.75108954,167.93,167.91,6.06439992]
[1641268621532,1.75108954,167.93,167.91,6.32439992]
[1641268621735,1.75108954,167.93,167.91,6.82439992]
[1641268625635,1.75108954,167.93,167.91,0.76]
[1641268626037,1.75108954,167.93,167.88,0.5]
[1641268626237,1.75108954,167.93,167.87,0.76]
[1641268626438,1.75108954,167.93,167.85,2.18669368]
[1641268626641,1.75108954,167.93,167.85,1.68669368]
[1641268626837,1.75108954,167.93,167.85,2.18669368]
[1641268627038,1.75108954,167.93,167.86,25.61928345]
[1641268627439,1.75108954,167.93,167.86,27.80597713]
[1641268629237,1.75108954,167.93,167.86,2.18669368]
[1641268637055,1.75108954,167.93,167.86,1.92669368]
[1641268638357,1.75108954,167.93,167.86,2.18669368]
[1641268641484,1.75108954,167.93,167.86,0.76]
[1641268641683,1.75108954,167.93,167.86,0.5]
[1641268641885,1.75108954,167.93,167.84,76.472]
[1641268642283,24.57098954,167.93,167.84,101.15841813]
[1641268642887,24.57098954,167.93,167.84,76.472]
[1641268643085,8.56,167.92,167.83,1.42669368]
[1641268643285,2.82189284,167.91,167.83,1.42669368]
[1641268643485,8.56,167.9,167.83,1.42669368]
[1641268643688,9.846,167.9,167.83,1.42669368]
[1641268644287,9.846,167.9,167.83,1.92669368]
[1641268644489,33.0625,167.9,167.83,1.68669368]
[1641268644690,33.0625,167.9,167.83,2.18669368]
[1641268644891,38.0935,167.9,167.83,0.5]
[1641268645289,38.0935,167.9,167.79,98.41899058]
[1641268645688,38.5935,167.9,167.79,98.41899058]
[1641268646091,145.5935,167.9,167.79,98.41899058]
[1641268647290,140.8225,167.9,167.79,98.41899058]
[1641268647589,140.3225,167.9,167.79,4.71899058]
[1641268647790,140.3225,167.9,167.79,4.97899058]
[1641268649390,140.0625,167.9,167.79,4.97899058]
[1641268649591,140.3225,167.9,167.79,4.97899058]
[1641268649794,140.0625,167.9,167.79,4.97899058]
[1641268651495,140.3225,167.9,167.79,4.97899058]
[1641268652093,140.0625,167.9,167.79,4.97899058]
[1641268652294,140.3225,167.9,167.79,4.97899058]
[1641268652493,140.0625,167.9,167.79,4.97899058]
[1641268652893,140.3225,167.9,167.79,4.97899058]
[1641268654295,140.3225,167.9,167.79,3.5522969]
[1641268655296,140.3225,167.9,167.79,4.97899058]
[1641268655700,140.3225,167.9,167.79,3.5522969]
[1641268656098,140.3225,167.9,167.79,4.97899058]
[1641268656999,140.3225,167.9,167.79,4.71899058]
[1641268657199,140.8225,167.9,167.79,4.71899058]
[1641268657398,140.8225,167.9,167.79,4.21899058]
[1641268657799,140.8225,167.9,167.79,2.7922969]
[1641268657999,140.8225,167.9,167.79,3.2922969]
[1641268658400,140.8225,167.9,167.79,3.5522969]
[1641268658802,140.3225,167.9,167.79,3.5522969]
[1641268660308,140.8225,167.9,167.79,3.5522969]
[1641268660508,140.3225,167.9,167.79,3.5522969]
[1641268661911,140.3225,167.9,167.79,4.97899058]
[1641268663314,140.3225,167.9,167.79,4.71899058]
[1641268664512,140.0625,167.9,167.79,4.71899058]
[1641268665011,140.0625,167.9,167.79,4.97899058]
[1641268665932,33.3225,167.9,167.79,4.97899058]
[1641268666736,33.3225,167.9,167.8,1.2996]
[1641268666937,33.0625,167.9,167.8,1.7996]
[1641268667137,33.0625,167.9,167.81,1.42669368]
[1641268667334,33.0625,167.9,167.82,16.40354385]
[1641268667534,33.0625,167.9,167.82,16.66354385]
[1641268667734,33.0625,167.9,167.82,17.16354385]
[1641268667934,33.0625,167.9,167.83,1.42669368]
[1641268668336,33.3225,167.9,167.83,2.18669368]
[1641268670034,33.3225,167.9,167.83,0.76]
[1641268670435,33.3225,167.9,167.82,0.76]
[1641268670637,33.3225,167.9,167.82,0.5]
[1641268670638,33.0625,167.9,167.82,0.5]
[1641268670835,33.3225,167.9,167.8,3.48629368]
[1641268671437,33.3225,167.9,167.8,34.31635215]
[1641268672238,33.3225,167.9,167.8,34.05635215]
[1641268673846,33.0625,167.9,167.8,34.05635215]
[1641268674044,33.3225,167.9,167.8,34.05635215]
[1641268675345,33.0625,167.9,167.8,34.05635215]
[1641268675546,33.3225,167.9,167.8,34.05635215]
[1641268677451,33.0625,167.9,167.8,34.05635215]
[1641268678854,33.3225,167.9,167.8,34.05635215]
[1641268680251,33.0625,167.9,167.8,34.05635215]
[1641268684984,1.75108954,167.93,167.8,34.05635215]
[1641268684985,10.31108954,167.93,167.8,40.79735215]
[1641268685179,35.43898954,167.93,167.81,24.0274]
[1641268685379,35.43898954,167.93,167.81,24.5274]
[1641268685380,10.31108954,167.93,167.81,24.5274]
[1641268685581,10.31108954,167.93,167.82,1.42669368]
[1641268685781,2.89489671,167.92,167.82,1.42669368]
[1641268685980,2.89489671,167.92,167.82,1.92669368]
[1641268686381,27.11119671,167.92,167.83,2.72759368]
[1641268686784,27.11119671,167.92,167.83,3.22759368]
[1641268687182,27.11119671,167.92,167.84,1.42669368]
[1641268687383,27.11119671,167.92,167.84,1.92669368]
[1641268691186,27.11119671,167.92,167.84,0.5]
[1641268691386,8.56,167.91,167.83,0.5]
[1641268691590,24.1239,167.9,167.82,1.2688]
[1641268691887,11.41846728,167.89,167.82,1.7688]
[1641268694487,11.41846728,167.89,167.82,0.5]
[1641268694892,11.41846728,167.89,167.81,102.475]
[1641268695389,11.41846728,167.89,167.81,78.4476]
[1641268695791,11.41846728,167.89,167.81,100.94563724]
[1641268697893,11.41846728,167.89,167.81,78.4476]
[1641268698301,11.41846728,167.89,167.81,0.5]
[1641268698494,11.41846728,167.89,167.8,1.7679]
[1641268698696,11.41846728,167.89,167.8,1.2679]
[1641268698896,29.30970202,167.88,167.8,1.7679]
[1641268699098,8.56,167.87,167.8,1.7679]
[1641268699310,33.3806,167.87,167.8,1.7679]
[1641268699498,33.3806,167.87,167.81,1.42669368]
[1641268699698,33.3806,167.87,167.8,1.7679]
[1641268700499,33.3806,167.87,167.81,1.42669368]
[1641268700901,33.3806,167.87,167.81,1.92669368]
[1641268704534,8.56,167.87,167.82,1.42669368]
[1641268704935,8.56,167.87,167.82,1.92669368]
[1641268706735,8.56,167.87,167.84,18.32947511]
[1641268706939,8.56,167.87,167.85,6.06439992]
[1641268707338,9.8346,167.92,167.85,6.56439992]
[1641268707537,8.56,167.92,167.85,6.56439992]
[1641268707738,8.56,167.92,167.85,7.9910936]
[1641268708139,2.97148824,167.91,167.85,9.3694936]
[1641268708538,2.97148824,167.91,167.85,7.94279992]
[1641268708741,2.97148824,167.91,167.85,6.56439992]
[1641268710340,2.97148824,167.91,167.85,3.53219995]
[1641268711342,2.97148824,167.91,167.85,0.5]
[1641268711544,8.56,167.9,167.81,1.8109]
[1641268711743,8.56,167.9,167.81,1.3109]
[1641268711744,9.8398,167.9,167.81,1.3109]